Cogmind - Beta 12 @@@ ROGUE MODE // 2023.05.15 @ 22:12:19 Player: Mr Goldstein Result: Destroyed by H-81 Overseer with Heavy Linear Accelerator Performance ------------- Evolutions (9) 4500 Regions Visited (12) 2400 Robots Destroyed (12) 60 Value Destroyed (526) 526 Prototype IDs (1) 20 Alien Tech Used (0) 0 Bonus (5085) 5085 TOTAL SCORE: 12591 Bonus ------- Pacifist 4085 Entered DSFs 1000 Cogmind --------- Core Integrity 0/1600 Matter 182/300 Energy 99/100 System Corruption 0% Temperature Cool (0) Movement Core (50) Location -1/Access Parts ------- > --- POWER (1) -------- (None) > --- PROPULSION (2) --- (None) > --- UTILITY (20) ----- (None) > --- WEAPON (2) ------- (None) > --- INVENTORY (5) ---- Gamma Bomb Array Peak State ------------ > --- POWER ------------ (None) > --- PROPULSION ------- (None) > --- UTILITY ---------- Reaction Control System Energy Mantle > --- WEAPON ----------- (None) > --- INVENTORY -------- Micro Nuclear Core Micro Nuclear Core Long-range Missile Launcher [Rating: 12] Favorites ----------- Power None Propulsion None Utility Reaction Control System Device Reaction Control System Weapon Long-range Missile Launcher Launcher Long-range Missile Launcher Build | -11 -10 -9 -8 -7 -7 -6 -5 -4 -3 -2 -2 -1 ------- Run | Jun Mat Mat Mat Fac DSF Fac Fac Fac Res Res DSF Acc Slots Evolved 18 | . . 2 2 2 . 2 2 2 2 2 . 2 Power . | . . . . . . . . . . . . . Propulsion . | . . . . . . . . . . . . . Utility 18 | . . 2 2 2 . 2 2 2 2 2 . 2 Weapon . | . . . . . . . . . . . . . Parts Attached 7 | . . . . . 1 1 . . 4 . . 1 Power . | . . . . . . . . . . . . . Engine . | . . . . . . . . . . . . . Core . | . . . . . . . . . . . . . Reactor . | . . . . . . . . . . . . . Propulsion . | . . . . . . . . . . . . . Treads . | . . . . . . . . . . . . . Leg . | . . . . . . . . . . . . . Wheel . | . . . . . . . . . . . . . Hover . | . . . . . . . . . . . . . Flight . | . . . . . . . . . . . . . Utility 4 | . . . . . 1 1 . . 2 . . . Device 4 | . . . . . 1 1 . . 2 . . . Storage . | . . . . . . . . . . . . . Processor . | . . . . . . . . . . . . . Hackware . | . . . . . . . . . . . . . Protection . | . . . . . . . . . . . . . Artifact . | . . . . . . . . . . . . . Weapon 3 | . . . . . . . . . 2 . . 1 Energy Gun . | . . . . . . . . . . . . . Energy Cannon . | . . . . . . . . . . . . . Ballistic Gun . | . . . . . . . . . . . . . Ballistic Cannon . | . . . . . . . . . . . . . Launcher 3 | . . . . . . . . . 2 . . 1 Special Weapon . | . . . . . . . . . . . . . Impact Weapon . | . . . . . . . . . . . . . Slashing Weapon . | . . . . . . . . . . . . . Piercing Weapon . | . . . . . . . . . . . . . Special Melee Weapon . | . . . . . . . . . . . . . Unidentified Prototypes 1 | . . . . . . . . . 1 . . . Parts Lost 5 | . . . . . 1 1 . . 1 . 1 1 Power . | . . . . . . . . . . . . . Propulsion . | . . . . . . . . . . . . . Utility 3 | . . . . . 1 1 . . . . 1 . Weapon 2 | . . . . . . . . . 1 . . 1 Highest Loss Streak 1 | . . . . . 1 1 . . 1 . 1 1 To Critical Strikes . | . . . . . . . . . . . . . Average Slot Usage (%) 1 | . . . . . 2 6 . . 1 4 1 . Device 1 | . . . . . 2 6 . . 1 4 1 . Naked Turns 535 | . 26 62 60 3 22 . 70 26 137 . 25 104 Heaviest Build 1 | . . . . . 1 1 . . 1 1 1 . Greatest Support 3 | 3 3 3 3 3 3 3 3 3 3 3 3 3 Greatest Overweight (x) . | . . . . . . . . . . . . . Average Overweight (x) . | . . . . . . . . . . . . . Largest Inventory Capacity 5 | 5 5 5 5 5 5 5 5 5 5 5 5 5 Average Capacity 5 | 5 5 5 5 5 5 5 5 5 5 5 5 5 Most Carried 5 | . . 1 1 1 5 5 5 5 5 5 5 3 Average Carried 3 | . . . 1 1 3 4 5 5 4 5 4 1 Final Capacity 5 | 5 5 5 5 5 5 5 5 5 5 5 5 5 Final Carried 5 | . . 1 1 1 5 5 5 5 5 5 4 1 Class Distribution -------------------- 100% | Mutant Dominant Class ---------------- Mutant | -10/Materials Mutant | -9/Materials Mutant | -8/Materials Mutant | -7/Factory Mutant | -7/DSF Mutant | -6/Factory Mutant | -5/Factory Mutant | -4/Factory Mutant | -3/Research Mutant | -2/Research Mutant | -2/DSF Mutant | -1/Access Resources | -11 -10 -9 -8 -7 -7 -6 -5 -4 -3 -2 -2 -1 ----------- Run | Jun Mat Mat Mat Fac DSF Fac Fac Fac Res Res DSF Acc Matter Collected 182 | 166 . . . . . . . . 15 . . 1 Remotely . | . . . . . . . . . . . . . Salvage Created 198 | . . . . . . . . . 125 . . 73 Parts 14 | . . . . . . . . . 9 . . 5 Haulers Intercepted . | . . . . . . . . . . . . . Recyclers Shooed . | . . . . . . . . . . . . . Parts Field Recycled . | . . . . . . . . . . . . . Retrieved Matter . | . . . . . . . . . . . . . Parts Self-Destructed . | . . . . . . . . . . . . . Prevented . | . . . . . . . . . . . . . Kills | -11 -10 -9 -8 -7 -7 -6 -5 -4 -3 -2 -2 -1 ------- Run | Jun Mat Mat Mat Fac DSF Fac Fac Fac Res Res DSF Acc Combat Hostiles Destroyed 12 | . . . . . . . . . 8 . . 4 AOE 12 | . . . . . . . . . 8 . . 4 Classes Destroyed 1 | . . . . . . . . . 1 . . . Swarmer 12 | . . . . . . . . . 8 . . 4 Best Kill Streak 4 | . . . . . . . . . 4 . . 4 Combat Bots Only 4 | . . . . . . . . . 4 . . 4 Max Kills in Single Turn 3 | . . . . . . . . . 3 . . 3 Gunslinging . | . . . . . . . . . . . . . Exploded 3 | . . . . . . . . . 3 . . 3 Melee . | . . . . . . . . . . . . . Uniques/NPCs Destroyed . | . . . . . . . . . . . . . Combat | -11 -10 -9 -8 -7 -7 -6 -5 -4 -3 -2 -2 -1 -------- Run | Jun Mat Mat Mat Fac DSF Fac Fac Fac Res Res DSF Acc Damage Taken 4009 | . 31 278 326 . 62 65 74 . 1130 . 393 1650 Core 3727 | . 31 278 326 . 32 35 74 . 964 . 385 1602 Absorbed by Shields 28 | . . . . . . . . . . . 28 . Core Remaining (%) 73 | 100 87 30 40 . 95 95 92 100 25 . 73 . Volleys Fired 6 | . . . . . . . . . 4 . . 2 Largest 1 | . . . . . . . . . 1 . . 1 Hottest 43 | . . . . . . . . . 43 . . 43 Shots Fired 6 | . . . . . . . . . 4 . . 2 Gun . | . . . . . . . . . . . . . Cannon . | . . . . . . . . . . . . . Launcher 6 | . . . . . . . . . 4 . . 2 Special . | . . . . . . . . . . . . . Kinetic . | . . . . . . . . . . . . . Thermal . | . . . . . . . . . . . . . Explosive 6 | . . . . . . . . . 4 . . 2 Electromagnetic . | . . . . . . . . . . . . . Robot Hit Streak 2 | . . . . . . . . . 2 . . 2 Robot Miss Streak 1 | . . . . . . . . . 1 . . 1 Penetration Max . | . . . . . . . . . . . . . Secondary Targets . | . . . . . . . . . . . . . Shots Hit Robots 4 | . . . . . . . . . 3 . . 1 Core Hits 18 | . . . . . . . 2 . 10 . . 6 Critical Kills . | . . . . . . . . . . . . . Critical Parts Destroyed . | . . . . . . . . . . . . . Critical Strikes . | . . . . . . . . . . . . . Melee Attacks . | . . . . . . . . . . . . . Impact . | . . . . . . . . . . . . . Slashing . | . . . . . . . . . . . . . Piercing . | . . . . . . . . . . . . . Sneak Attacks . | . . . . . . . . . . . . . Combat Hostiles . | . . . . . . . . . . . . . Follow-up Attacks . | . . . . . . . . . . . . . Damage Inflicted 1399 | . 3 . . . . 7 3 . 883 . . 503 Guns . | . . . . . . . . . . . . . Cannons . | . . . . . . . . . . . . . Explosions 1355 | . . . . . . . . . 852 . . 503 Melee . | . . . . . . . . . . . . . Ramming 44 | . 3 . . . . 7 3 . 31 . . . Kinetic . | . . . . . . . . . . . . . Thermal . | . . . . . . . . . . . . . Explosive 1355 | . . . . . . . . . 852 . . 503 Electromagnetic . | . . . . . . . . . . . . . Impact . | . . . . . . . . . . . . . Slashing . | . . . . . . . . . . . . . Piercing . | . . . . . . . . . . . . . Highest Corruption 3 | . . . . . . . . . 3 . 3 . Average Corruption 2 | . . . . . . . . . 2 . 2 . Corruption Purged . | . . . . . . . . . . . . . Corruption Blocked . | . . . . . . . . . . . . . Effects 3 | . . . . . . . . . 3 . . . Message Errors 1 | . . . . . . . . . 1 . . . Matter Fused 1 | . . . . . . . . . 1 . . . Heat Flow Errors 1 | . . . . . . . . . 1 . . . Overload Shots . | . . . . . . . . . . . . . Overflow Damage 79 | . . . . . . . . . 13 . . 66 Projectiles . | . . . . . . . . . . . . . Explosions 79 | . . . . . . . . . 13 . . 66 Melee . | . . . . . . . . . . . . . Knockbacks . | . . . . . . . . . . . . . Impact . | . . . . . . . . . . . . . Kinetic . | . . . . . . . . . . . . . Secondary . | . . . . . . . . . . . . . Self-Inflicted Damage 106 | . 1 . . . . 3 1 . 44 . . 57 Shots 2 | . . . . . . . . . 1 . . 1 Rammed 11 | . 2 . 1 . . 1 2 . 5 . . . Targets Rammed 11 | . 2 . 1 . . 1 2 . 5 . . . Kicked . | . . . . . . . . . . . . . Crushed . | . . . . . . . . . . . . . Highest Temperature 187 | . . . . . . . . . 187 . . . Average Temperature 95 | . . . . . . . . . 95 . . . Received Heat Transfer 356 | . 12 57 72 . . 24 . . 182 . . 9 Siege Activations . | . . . . . . . . . . . . . Robots Corrupted . | . . . . . . . . . . . . . Combat Hostiles . | . . . . . . . . . . . . . Parts Fried . | . . . . . . . . . . . . . Impact Corruptions . | . . . . . . . . . . . . . Robots Melted . | . . . . . . . . . . . . . Combat Hostiles . | . . . . . . . . . . . . . Parts Melted . | . . . . . . . . . . . . . Heat Transferred . | . . . . . . . . . . . . . Parts Sabotaged . | . . . . . . . . . . . . . Parts Stolen . | . . . . . . . . . . . . . Parts Stripped . | . . . . . . . . . . . . . Power Chain Reactions . | . . . . . . . . . . . . . Missiles Intercepted . | . . . . . . . . . . . . . Alert | -11 -10 -9 -8 -7 -7 -6 -5 -4 -3 -2 -2 -1 ------- Run | Jun Mat Mat Mat Fac DSF Fac Fac Fac Res Res DSF Acc Peak Influence 635 | . 15 80 153 69 53 42 68 32 635 357 271 419 Initial 357 | . . 5 33 69 48 27 15 32 16 357 271 156 Average 195 | . 4 38 71 69 42 28 28 32 366 357 263 287 Maximum Alert Level 2 | . . . . . . . . . 2 1 1 2 Low Security (%) 57 | 100 100 100 100 100 100 100 100 100 26 . . 12 Level 1 26 | . . . . . . . . . 25 100 100 83 Level 2 16 | . . . . . . . . . 48 . . 4 Level 3 . | . . . . . . . . . . . . . Level 4 . | . . . . . . . . . . . . . Level 5 . | . . . . . . . . . . . . . High Security . | . . . . . . . . . . . . . Max Security . | . . . . . . . . . . . . . Squads Dispatched 10 | . 1 3 2 . . . 1 . . . 1 2 Investigation 2 | . 1 . . . . . . . . . . 1 Extermination . | . . . . . . . . . . . . . Reinforcement 8 | . . 3 2 . . . 1 . . . 1 1 Assault . | . . . . . . . . . . . . . Garrison . | . . . . . . . . . . . . . Intercept . | . . . . . . . . . . . . . Searches Triggered . | . . . . . . . . . . . . . Construction Impeded . | . . . . . . . . . . . . . Haulers Reinforced 1 | . . . . . . . 1 . . . . . Active Scanning Responses . | . . . . . . . . . . . . . Cargo Convoy Interrupts . | . . . . . . . . . . . . . Stealth | -11 -10 -9 -8 -7 -7 -6 -5 -4 -3 -2 -2 -1 --------- Run | Jun Mat Mat Mat Fac DSF Fac Fac Fac Res Res DSF Acc Distress Signals 1 | . . . 1 . . . . . . . . . Communications Jammed . | . . . . . . . . . . . . . Distress Signals . | . . . . . . . . . . . . . Times Spotted 102 | . 3 11 18 . . 1 5 . 34 . 6 24 Peak Tracking Total 18 | . 3 6 18 . 1 1 5 . 15 . 6 14 Tactical Retreats 13 | . . 1 1 . 1 . 1 . 7 . . 2 Traps | -11 -10 -9 -8 -7 -7 -6 -5 -4 -3 -2 -2 -1 ------- Run | Jun Mat Mat Mat Fac DSF Fac Fac Fac Res Res DSF Acc Traps Triggered 6 | . 1 1 . . . . 1 . 2 . 1 . Indirectly . | . . . . . . . . . . . . . Trap Hack Attempts . | . . . . . . . . . . . . . Triggered . | . . . . . . . . . . . . . Disarmed . | . . . . . . . . . . . . . Reprogrammed . | . . . . . . . . . . . . . Reused . | . . . . . . . . . . . . . Traps Extracted . | . . . . . . . . . . . . . Installed . | . . . . . . . . . . . . . Triggered . | . . . . . . . . . . . . . Machines | -11 -10 -9 -8 -7 -7 -6 -5 -4 -3 -2 -2 -1 ---------- Run | Jun Mat Mat Mat Fac DSF Fac Fac Fac Res Res DSF Acc Machines Disabled 1 | . . . . . . . . . . . . 1 Max in Single Turn 1 | . . . . . . . . . . . . 1 Machines Repaired . | . . . . . . . . . . . . . Machines Sabotaged . | . . . . . . . . . . . . . Overloaded Fab Kills . | . . . . . . . . . . . . . Hacking | -11 -10 -9 -8 -7 -7 -6 -5 -4 -3 -2 -2 -1 --------- Run | Jun Mat Mat Mat Fac DSF Fac Fac Fac Res Res DSF Acc Machines Accessed 5 | . . . . 1 . . 1 . . 1 . 2 Terminals 5 | . . . . 1 . . 1 . . 1 . 2 Fabricators . | . . . . . . . . . . . . . Repair Stations . | . . . . . . . . . . . . . Recycling Units . | . . . . . . . . . . . . . Scanalyzers . | . . . . . . . . . . . . . Garrison Access . | . . . . . . . . . . . . . Total Hacks 10 | . . . . 1 . . 2 . . 3 . 4 Successful 3 | . . . . 1 . . 1 . . 1 . . Failed 7 | . . . . . . . 1 . . 2 . 4 Catastrophic 2 | . . . . . . . . . . . . 2 Database Lockouts . | . . . . . . . . . . . . . Manual 6 | . . . . . . . 2 . . . . 4 Terminals 10 | . . . . 1 . . 2 . . 3 . 4 Fabricators . | . . . . . . . . . . . . . Repair Stations . | . . . . . . . . . . . . . Recycling Units . | . . . . . . . . . . . . . Scanalyzers . | . . . . . . . . . . . . . Garrison Access . | . . . . . . . . . . . . . Terminal Hacks 3 | . . . . 1 . . 1 . . 1 . . Open DSF 2 | . . . . 1 . . . . . 1 . . Branch Access Points 1 | . . . . . . . 1 . . . . . Fabricator Hacks . | . . . . . . . . . . . . . Repair Station Hacks . | . . . . . . . . . . . . . Recycling Unit Hacks . | . . . . . . . . . . . . . Scanalyzer . | . . . . . . . . . . . . . Garrison Access Hacks . | . . . . . . . . . . . . . Unauthorized Hacks . | . . . . . . . . . . . . . Terminals . | . . . . . . . . . . . . . Fabricators . | . . . . . . . . . . . . . Repair Stations . | . . . . . . . . . . . . . Recycling Units . | . . . . . . . . . . . . . Scanalyzers . | . . . . . . . . . . . . . Garrison Access . | . . . . . . . . . . . . . Data Cores Recovered . | . . . . . . . . . . . . . Used . | . . . . . . . . . . . . . Hacking Detections 3 | . . . . . . . 1 . . . . 2 Full Trace Events 1 | . . . . . . . . . . . . 1 Feedback Events . | . . . . . . . . . . . . . Feedback Blocked . | . . . . . . . . . . . . . Robot Schematics Acquired . | . . . . . . . . . . . . . Robots Built . | . . . . . . . . . . . . . Authchips . | . . . . . . . . . . . . . Time . | . . . . . . . . . . . . . Total Robot Build Rating . | . . . . . . . . . . . . . Part Schematics Acquired . | . . . . . . . . . . . . . Parts Built . | . . . . . . . . . . . . . Authchips . | . . . . . . . . . . . . . Time . | . . . . . . . . . . . . . Total Part Build Rating . | . . . . . . . . . . . . . Parts Repaired . | . . . . . . . . . . . . . Time . | . . . . . . . . . . . . . Parts Recycled . | . . . . . . . . . . . . . Recycled Matter . | . . . . . . . . . . . . . Retrieved Matter . | . . . . . . . . . . . . . Retrieved Components . | . . . . . . . . . . . . . Parts Scanalyzed . | . . . . . . . . . . . . . Part Schematics Acquired . | . . . . . . . . . . . . . Parts Damaged . | . . . . . . . . . . . . . Bothacking | -11 -10 -9 -8 -7 -7 -6 -5 -4 -3 -2 -2 -1 ------------ Run | Jun Mat Mat Mat Fac DSF Fac Fac Fac Res Res DSF Acc Used RIF Installer . | . . . . . . . . . . . . . Robots Hacked . | . . . . . . . . . . . . . Non-combat . | . . . . . . . . . . . . . Combat . | . . . . . . . . . . . . . Robot Hacks Applied . | . . . . . . . . . . . . . Relay Couplers Released . | . . . . . . . . . . . . . Fabnet Peak Effective % . | . . . . . . . . . . . . . Robots Rewired . | . . . . . . . . . . . . . Allies Hacked . | . . . . . . . . . . . . . Hacks Repelled . | . . . . . . . . . . . . . Allies | -11 -10 -9 -8 -7 -7 -6 -5 -4 -3 -2 -2 -1 -------- Run | Jun Mat Mat Mat Fac DSF Fac Fac Fac Res Res DSF Acc Total Allies . | . . . . . . . . . . . . . Largest Group . | . . . . . . . . . . . . . Highest-Rated Group . | . . . . . . . . . . . . . Highest-Rated Ally . | . . . . . . . . . . . . . Total Orders . | . . . . . . . . . . . . . Ally Attacks . | . . . . . . . . . . . . . Total Damage . | . . . . . . . . . . . . . Kills . | . . . . . . . . . . . . . Allies Corrupted . | . . . . . . . . . . . . . Allies Melted . | . . . . . . . . . . . . . Intel | -11 -10 -9 -8 -7 -7 -6 -5 -4 -3 -2 -2 -1 ------- Run | Jun Mat Mat Mat Fac DSF Fac Fac Fac Res Res DSF Acc Robot Analysis Total . | . . . . . . . . . . . . . Derelict Logs Recovered . | . . . . . . . . . . . . . Drone Launches . | . . . . . . . . . . . . . Drone Recoveries . | . . . . . . . . . . . . . Exploration | -11 -10 -9 -8 -7 -7 -6 -5 -4 -3 -2 -2 -1 ------------- Run | Jun Mat Mat Mat Fac DSF Fac Fac Fac Res Res DSF Acc Turns Passed 714 | 10 26 62 60 3 32 45 70 26 232 7 34 107 Spaces Moved 1311 | 20 48 121 117 5 53 79 135 51 423 14 44 201 Core 1311 | 20 48 121 117 5 53 79 135 51 423 14 44 201 Treads . | . . . . . . . . . . . . . Legs . | . . . . . . . . . . . . . Wheels . | . . . . . . . . . . . . . Hover . | . . . . . . . . . . . . . Flight . | . . . . . . . . . . . . . Fastest Speed 50 | 50 50 50 50 50 50 50 50 50 50 50 50 50 Average Speed 50 | 50 50 50 50 50 50 50 50 50 50 50 50 50 Slowest Speed 50 | 50 50 50 50 50 50 50 50 50 50 50 50 50 Overloaded Moves . | . . . . . . . . . . . . . Propulsion Burnouts . | . . . . . . . . . . . . . Robots Hopped . | . . . . . . . . . . . . . Cave-ins Triggered . | . . . . . . . . . . . . . Exploration Rate (%) 17 | 3 14 22 23 . 44 4 5 2 20 . 46 6 Regions Visited 12 Branch Regions . Pre-discovered Areas . | . . . . . . . . . . . . . Known Exits Taken 2 | . . . . 1 . . . . . 1 . . Unknown Exits Taken 8 | 1 1 1 1 . . 1 1 1 1 . . . Scrap Searched . | . . . . . . . . . . . . . Spaces Dug . | . . . . . . . . . . . . . Terrain Destroyed 42 | . . . . . . . . . 37 . . 5 Melee . | . . . . . . . . . . . . . Projectile . | . . . . . . . . . . . . . AOE 42 | . . . . . . . . . 37 . . 5 Terrain Rammed . | . . . . . . . . . . . . . Walls Destroyed . | . . . . . . . . . . . . . Machines Disabled . | . . . . . . . . . . . . . Actions | -11 -10 -9 -8 -7 -7 -6 -5 -4 -3 -2 -2 -1 --------- Run | Jun Mat Mat Mat Fac DSF Fac Fac Fac Res Res DSF Acc Total 1350 | 19 49 121 117 4 57 85 136 50 438 13 55 206 Wait . | . . . . . . . . . . . . . Move 1300 | 19 47 120 116 4 52 79 134 50 422 13 43 201 Hop . | . . . . . . . . . . . . . Pick Up 9 | . . 1 . . 4 3 . . 1 . . . Fast Attach 2 | . . . . . 1 . . . 1 . . . Attach 5 | . . . . . . 1 . . 3 . . 1 Detach 2 | . . . . . . . . . 2 . . . Swap . | . . . . . . . . . . . . . Drop 5 | . . . . . . 2 . . . . 1 2 Fire 6 | . . . . . . . . . 4 . . 2 Melee . | . . . . . . . . . . . . . Ram 10 | . 2 . 1 . . . 2 . 5 . . . Kick . | . . . . . . . . . . . . . Crush . | . . . . . . . . . . . . . Escape Stasis 10 | . . . . . . . . . . . 10 . Rewire 1 | . . . . . . . . . . . 1 . Trap . | . . . . . . . . . . . . . Miscellaneous . | . . . . . . . . . . . . . Route ------- -11/Junkyard -10/Materials -9/Materials -8/Materials -7/Factory -7/DSF -6/Factory -5/Factory (discovered 3 exits: [*Fac] / Upp x2) -4/Factory -3/Research -2/Research -2/DSF -1/Access History --------- Turn | Location | Event 2 | -11/Junkyard | Met Revision 17 2 | -11/Junkyard | Discovered new exit (range 16) 11 | -11/Junkyard | Entered Materials 34 | -10/Materials | Discovered new exit (range 5) 37 | -10/Materials | Entered another Materials area 37 | -9/Materials | Evolved 2 slots: Utility x2 91 | -9/Materials | Discovered new exit (range 15) 92 | -9/Materials | Core integrity fell below 50% 99 | -9/Materials | Entered another Materials area 99 | -8/Materials | Evolved 2 slots: Utility x2 143 | -8/Materials | Core integrity fell below 50% 151 | -8/Materials | Discovered new exit (range 15) 159 | -8/Materials | Entered Factory 159 | -7/Factory | Evolved 2 slots: Utility x2 162 | -7/Factory | Identified exit to DSF 162 | -7/Factory | Entered DSF 177 | -7/DSF | Discovered new exit (range 13) 194 | -7/DSF | Additional patrols routed to DSF 194 | -7/DSF | Entered Factory 194 | -6/Factory | Evolved 2 slots: Utility x2 233 | -6/Factory | Spotted B-75 Beast 234 | -6/Factory | Discovered new exit (range 12) 239 | -6/Factory | Entered another Factory area 239 | -5/Factory | Evolved 2 slots: Utility x2 286 | -5/Factory | Assembled infested ambush trap array 296 | -5/Factory | Identified exit to Upper Caves 301 | -5/Factory | Discovered new exit (range 13) 309 | -5/Factory | Entered another Factory area 309 | -4/Factory | Evolved 2 slots: Utility x2 314 | -4/Factory | Build established: Mutant 330 | -4/Factory | Discovered new exit (range 6) 335 | -4/Factory | Entered Research 335 | -3/Research | Evolved 2 slots: Utility x2 467 | -3/Research | Core integrity fell below 50% 523 | -3/Research | Spotted B-86 Titan 534 | -3/Research | Found Gamma Bomb Array 557 | -3/Research | Spotted B-86 Titan 565 | -3/Research | Discovered new exit (range 4) 567 | -3/Research | Entered another Research area 567 | -2/Research | Evolved 2 slots: Utility x2 574 | -2/Research | Identified exit to DSF 574 | -2/Research | Entered DSF 596 | -2/DSF | Additional patrols routed to DSF 602 | -2/DSF | Discovered new exit (range 12) 608 | -2/DSF | Entered Access 608 | -1/Access | Evolved 2 slots: Utility x2 681 | -1/Access | Core integrity fell below 50% 704 | -1/Access | Core integrity fell below 20% 715 | -1/Access | Destroyed by H-81 Overseer with Heavy Linear Accelerator Last Messages --------------- 00621_ Destroyed Xenon Bombardment Thruster. 00621_ S-43 Plague destroyed. 00623_ Terminal disabled. 00623_ Lrn. Missile Launcher destroyed. 00623_ Destroyed Lrn. Missile Launcher. 00623_ S-43 Plague destroyed. 00662_ K-01 Serf destroyed. 00669_ K-01 Serf cleans the Terminal. 00672_ R-10 Processor collects Lgt. Ion Engine. 00672_ Acquired 1 matter. 00680_ Knocked back. 00681_ Penetrated by Slug. 00681_ Knocked back. 00690_ Connecting with Terminal... 00690_ ALERT: Suspicious activity at Terminal A017. Dispatching Investigation squad. 00703_ Penetrated by Slug. 00710_ ALERT: Suspicious intruders detected, dispatching Cutter reinforcements to area. 00713_ Knocked back. Map ----- +----------------------------------------------------+ | ?????????????????????????????????????????????????? | | ?????????????????????????????????????????????????? | | ?????????????????????????????????????????????????? | | ?????????????????????????????????????????????????? | | ?????????????????????????????????????????????????? | | ?????????????????????????????????????????????????? | | ?????????????????????????????????????????????????? | | ??????????????????????????????????????#######????? | | ?????????????????????????????????????? ????? | | ?????????????????????????????????????? ????? | | ????????????????????????????????????? " #???? | | ????????????????????????????????????#""" #???? | | ????????????????????????????????????# """ #???? | | ????????????????????????????????????# " #???? | | ????????????????????????????????????# #???? | | ?????????????????????????????????????? ! #???? | | ???????????????????????????????????????? #???? | | ?????????????????????????????????????????? #???? | | ????????????????????????##+#################+##### | | ????????????????????????# | | ????????????????????????+ | | ????????????????????????# #???######## ######### | | ????????????????????????+ #??????????# #???????? | | ????????????????????????# ############ #???????? | | ????????????????????????# %## * ## #???????? | | ???????????????????????##@ ## ## #???????? | | ????????????? ####### # " ## #???????? | | ????????????# / # """ ## ##??????? | | ????????????# = k H + """ # #??????? | | ????????????# ####### # % " ! + #??????? | | ????????????#??????????###### # +??????? | | ????????????????????????????# # #??????? | | ????????????????????????????# ######??????? | | ????????????????????????????##########???????????? | | ?????????????????????????????????????????????????? | | ?????????????????????????????????????????????????? | | ?????????????????????????????????????????????????? | | ?????????????????????????????????????????????????? | | ?????????????????????????????????????????????????? | | ?????????????????????????????????????????????????? | | ?????????????????????????????????????????????????? | | ?????????????????????????????????????????????????? | | ?????????????????????????????????????????????????? | | ?????????????????????????????????????????????????? | | ?????????????????????????????????????????????????? | | ?????????????????????????????????????????????????? | | ?????????????????????????????????????????????????? | | ?????????????????????????????????????????????????? | | ?????????????????????????????????????????????????? | | ?????????????????????????????????????????????????? | +----------------------------------------------------+ Best States ------------- Heat Dissipation 52 Energy Generation 5 Energy Capacity 100 Matter Stores 281 Matter Capacity 300 Sight Range 16 Terrain Scan Density 10 Evasion (%) 58 Item Schematics ----------------- None Robot Schematics ------------------ None Fabricated ------------ Nothing Alien Tech Used ----------------- None Achievements -------------- None Challenges ------------ None Game ------ Seed ThiefTransmissionMatrix Manual? 0 Play Time 00:12:29 Cumulative 213.9 hours Start 2023.05.15 @ 22:00:27 End 2023.05.15 @ 22:12:19 Sessions 1 Manual Loads 0 Difficulty Rogue Special Mode None Game No. 628 Rogue 628 Adventurer 0 Explorer 0 Win Type - Total 9 Types 7/0/1/1/0/0/0/0/0 Lore% 82 Gallery% 80 Achievement% 71 Wizard Run 0 Options --------- ASCII 0 Keyboard 0 Movement Numpad Keybinds 0 Fullscreen 1 Font 16/SmallcapsGlow Map View 75x55 Tactical HUD 1 Map Filters NONE Filters NONE Steam 1 RUN: 1b24d493-30ab-4012-a11c-470dfb2ca67c